{"text_format":"3","workbook":"xlsx","n_sheets":13,"sheets":["Ocak","Şubat","Mart","Nisan","Mayıs","Haziran","Temmuz","Ağustos","Eylül","Ekim","Kasım","Aralık","Yılbaşından Bugüne Özet"],"not_rendered":{"charts":1,"defined_names":13},"read":"whole","date_system":"1900"}

{"sheet":"Ocak","index":0,"n_rows":9,"n_cols":14,"rows_kept":9,"merged":[[3,0,4,0],[6,0,7,0]]}
["OCAK"]
["Çevrimiçi Satış",null,"Artırma Kodu","Ürün açıklaması","Satın alma fiyatı","Satış fiyatı","Çevrimiçi ücretler","PayPal ücretleri","Kredi Kartı ücretleri","Nakliye ücretleri","Nakliye ücretleri2","Satış karı/zararı","Nakliye karı/zararı","Toplam kar/zarar"]
["Yıl",null,"TS001","Ürün 1",{"v":5,"d":"5.00 TL"},{"v":4,"d":"4.00 TL"},{"v":2,"d":"2.00 TL"},{"v":1.5,"d":"1.50 TL"},{"v":0,"d":"0.00 TL"},{"v":4,"d":"4.00 TL"},{"v":2,"d":"2.00 TL"},{"$f":"IFERROR(OcakSatışları[Satış fiyatı]-(OcakSatışları[Satın alma fiyatı]+OcakSatışları[Çevrimiçi ücretler]+OcakSatışları[PayPal ücretleri]+OcakSatışları[Kredi Kartı ücretleri]),\"\")","v":{"v":-4.5,"d":"-4.50 TL"}},{"$f":"OcakSatışları[Nakliye ücretleri]-OcakSatışları[Nakliye ücretleri2]","v":{"v":2,"d":"2.00 TL"}},{"$f":"OcakSatışları[Satış karı/zararı]+OcakSatışları[Nakliye karı/zararı]","v":{"v":-2.5,"d":"-2.50 TL"}}]
[2012,null,"TP004","Ürün 2",{"v":2,"d":"2.00 TL"},{"v":30,"d":"30.00 TL"},{"v":0.5,"d":"0.50 TL"},{"v":0.5,"d":"0.50 TL"},null,{"v":4,"d":"4.00 TL"},{"v":5.5,"d":"5.50 TL"},{"$f":"IFERROR(OcakSatışları[Satış fiyatı]-(OcakSatışları[Satın alma fiyatı]+OcakSatışları[Çevrimiçi ücretler]+OcakSatışları[PayPal ücretleri]+OcakSatışları[Kredi Kartı ücretleri]),\"\")","v":{"v":27,"d":"27.00 TL"}},{"$f":"OcakSatışları[Nakliye ücretleri]-OcakSatışları[Nakliye ücretleri2]","v":{"v":-1.5,"d":"-1.50 TL"}},{"$f":"OcakSatışları[Satış karı/zararı]+OcakSatışları[Nakliye karı/zararı]","v":{"v":25.5,"d":"25.50 TL"}}]
[null,null,"RS99","Ürün 3",{"v":17,"d":"17.00 TL"},{"v":23,"d":"23.00 TL"},{"v":2,"d":"2.00 TL"},null,{"v":2,"d":"2.00 TL"},{"v":3,"d":"3.00 TL"},{"v":2,"d":"2.00 TL"},{"$f":"IFERROR(OcakSatışları[Satış fiyatı]-(OcakSatışları[Satın alma fiyatı]+OcakSatışları[Çevrimiçi ücretler]+OcakSatışları[PayPal ücretleri]+OcakSatışları[Kredi Kartı ücretleri]),\"\")","v":{"v":2,"d":"2.00 TL"}},{"$f":"OcakSatışları[Nakliye ücretleri]-OcakSatışları[Nakliye ücretleri2]","v":{"v":1,"d":"1.00 TL"}},{"$f":"OcakSatışları[Satış karı/zararı]+OcakSatışları[Nakliye karı/zararı]","v":{"v":3,"d":"3.00 TL"}}]
["Toplam Kar/Zarar",null,"ST001","Ürün 4",{"v":120,"d":"120.00 TL"},{"v":180,"d":"180.00 TL"},{"v":2,"d":"2.00 TL"},{"v":1.5,"d":"1.50 TL"},null,{"v":3,"d":"3.00 TL"},{"v":2,"d":"2.00 TL"},{"$f":"IFERROR(OcakSatışları[Satış fiyatı]-(OcakSatışları[Satın alma fiyatı]+OcakSatışları[Çevrimiçi ücretler]+OcakSatışları[PayPal ücretleri]+OcakSatışları[Kredi Kartı ücretleri]),\"\")","v":{"v":56.5,"d":"56.50 TL"}},{"$f":"OcakSatışları[Nakliye ücretleri]-OcakSatışları[Nakliye ücretleri2]","v":{"v":1,"d":"1.00 TL"}},{"$f":"OcakSatışları[Satış karı/zararı]+OcakSatışları[Nakliye karı/zararı]","v":{"v":57.5,"d":"57.50 TL"}}]
[{"$f":"OcakSatışları[[#Totals],[Toplam kar/zarar]]","v":{"v":89,"d":"89.00 TL"}},null,"ST001","Ürün 5",{"v":10,"d":"10.00 TL"},{"v":12,"d":"12.00 TL"},{"v":2,"d":"2.00 TL"},{"v":1.5,"d":"1.50 TL"},null,{"v":14,"d":"14.00 TL"},{"v":7,"d":"7.00 TL"},{"$f":"IFERROR(OcakSatışları[Satış fiyatı]-(OcakSatışları[Satın alma fiyatı]+OcakSatışları[Çevrimiçi ücretler]+OcakSatışları[PayPal ücretleri]+OcakSatışları[Kredi Kartı ücretleri]),\"\")","v":{"v":-1.5,"d":"-1.50 TL"}},{"$f":"OcakSatışları[Nakliye ücretleri]-OcakSatışları[Nakliye ücretleri2]","v":{"v":7,"d":"7.00 TL"}},{"$f":"OcakSatışları[Satış karı/zararı]+OcakSatışları[Nakliye karı/zararı]","v":{"v":5.5,"d":"5.50 TL"}}]
[null,null,"Toplam",{"$f":"\"Satılan Öğeler: \"&SUBTOTAL(103,OcakSatışları[Ürün açıklaması])","v":"Satılan Öğeler: 5"},{"$f":"SUBTOTAL(109,OcakSatışları[Satın alma fiyatı])","v":{"v":154,"d":"154.00 TL"}},{"$f":"SUBTOTAL(109,OcakSatışları[Satış fiyatı])","v":{"v":249,"d":"249.00 TL"}},{"$f":"SUBTOTAL(109,OcakSatışları[Çevrimiçi ücretler])","v":{"v":8.5,"d":"8.50 TL"}},{"$f":"SUBTOTAL(109,OcakSatışları[PayPal ücretleri])","v":{"v":5,"d":"5.00 TL"}},{"$f":"SUBTOTAL(109,OcakSatışları[Kredi Kartı ücretleri])","v":{"v":2,"d":"2.00 TL"}},{"$f":"SUBTOTAL(109,OcakSatışları[Nakliye ücretleri])","v":{"v":28,"d":"28.00 TL"}},{"$f":"SUBTOTAL(109,OcakSatışları[Nakliye ücretleri2])","v":{"v":18.5,"d":"18.50 TL"}},{"$f":"SUBTOTAL(109,OcakSatışları[Satış karı/zararı])","v":{"v":79.5,"d":"79.50 TL"}},{"$f":"SUBTOTAL(109,OcakSatışları[Nakliye karı/zararı])","v":{"v":9.5,"d":"9.50 TL"}},{"$f":"SUBTOTAL(109,OcakSatışları[Toplam kar/zarar])","v":{"v":89,"d":"89.00 TL"}}]
["Kar/Zarar Eğilimi"]

{"sheet":"Şubat","index":1,"n_rows":9,"n_cols":14,"rows_kept":9,"merged":[[3,0,4,0],[6,0,7,0]]}
["ŞUBAT"]
["Çevrimiçi Satış",null,"Artırma Kodu","Ürün açıklaması","Satın alma fiyatı","Satış fiyatı","Çevrimiçi ücretler","PayPal ücretleri","Kredi Kartı ücretleri","Nakliye ücretleri","Nakliye ücretleri2","Satış karı/zararı","Nakliye karı/zararı","Toplam kar/zarar"]
["Yıl",null,"TS020","Ürün 1",{"v":10,"d":"10.00 TL"},{"v":175,"d":"175.00 TL"},{"v":3,"d":"3.00 TL"},{"v":1.5,"d":"1.50 TL"},{"v":0,"d":"0.00 TL"},{"v":7,"d":"7.00 TL"},{"v":5,"d":"5.00 TL"},{"$f":"IFERROR(ŞubatSatışları[Satış fiyatı]-(ŞubatSatışları[Satın alma fiyatı]+ŞubatSatışları[Çevrimiçi ücretler]+ŞubatSatışları[PayPal ücretleri]+ŞubatSatışları[Kredi Kartı ücretleri]),\"\")","v":{"v":160.5,"d":"160.50 TL"}},{"$f":"ŞubatSatışları[Nakliye ücretleri]-ŞubatSatışları[Nakliye ücretleri2]","v":{"v":2,"d":"2.00 TL"}},{"$f":"ŞubatSatışları[Satış karı/zararı]+ŞubatSatışları[Nakliye karı/zararı]","v":{"v":162.5,"d":"162.50 TL"}}]
[{"$f":"SatışYılı","v":2012},null,"TS021","Ürün 2",{"v":32,"d":"32.00 TL"},{"v":100,"d":"100.00 TL"},{"v":3,"d":"3.00 TL"},null,{"v":3.2,"d":"3.20 TL"},{"v":20,"d":"20.00 TL"},{"v":13,"d":"13.00 TL"},{"$f":"IFERROR(ŞubatSatışları[Satış fiyatı]-(ŞubatSatışları[Satın alma fiyatı]+ŞubatSatışları[Çevrimiçi ücretler]+ŞubatSatışları[PayPal ücretleri]+ŞubatSatışları[Kredi Kartı ücretleri]),\"\")","v":{"v":61.8,"d":"61.80 TL"}},{"$f":"ŞubatSatışları[Nakliye ücretleri]-ŞubatSatışları[Nakliye ücretleri2]","v":{"v":7,"d":"7.00 TL"}},{"$f":"ŞubatSatışları[Satış karı/zararı]+ŞubatSatışları[Nakliye karı/zararı]","v":{"v":68.8,"d":"68.80 TL"}}]
[null,null,"TS022","Ürün 3",{"v":3,"d":"3.00 TL"},{"v":7,"d":"7.00 TL"},{"v":2,"d":"2.00 TL"},null,{"v":2,"d":"2.00 TL"},{"v":0.5,"d":"0.50 TL"},{"v":1.2,"d":"1.20 TL"},{"$f":"IFERROR(ŞubatSatışları[Satış fiyatı]-(ŞubatSatışları[Satın alma fiyatı]+ŞubatSatışları[Çevrimiçi ücretler]+ŞubatSatışları[PayPal ücretleri]+ŞubatSatışları[Kredi Kartı ücretleri]),\"\")","v":{"v":0,"d":"0.00 TL"}},{"$f":"ŞubatSatışları[Nakliye ücretleri]-ŞubatSatışları[Nakliye ücretleri2]","v":{"v":-0.7,"d":"-0.70 TL"}},{"$f":"ŞubatSatışları[Satış karı/zararı]+ŞubatSatışları[Nakliye karı/zararı]","v":{"v":-0.7,"d":"-0.70 TL"}}]
["Toplam Kar/Zarar",null,"TS023","Ürün 4",{"v":22,"d":"22.00 TL"},{"v":18,"d":"18.00 TL"},{"v":3,"d":"3.00 TL"},{"v":1.5,"d":"1.50 TL"},null,{"v":7,"d":"7.00 TL"},{"v":10,"d":"10.00 TL"},{"$f":"IFERROR(ŞubatSatışları[Satış fiyatı]-(ŞubatSatışları[Satın alma fiyatı]+ŞubatSatışları[Çevrimiçi ücretler]+ŞubatSatışları[PayPal ücretleri]+ŞubatSatışları[Kredi Kartı ücretleri]),\"\")","v":{"v":-8.5,"d":"-8.50 TL"}},{"$f":"ŞubatSatışları[Nakliye ücretleri]-ŞubatSatışları[Nakliye ücretleri2]","v":{"v":-3,"d":"-3.00 TL"}},{"$f":"ŞubatSatışları[Satış karı/zararı]+ŞubatSatışları[Nakliye karı/zararı]","v":{"v":-11.5,"d":"-11.50 TL"}}]
[{"$f":"ŞubatSatışları[[#Totals],[Toplam kar/zarar]]","v":{"v":224.60000000000002,"d":"224.60 TL"}},null,"TS024","Ürün 5",{"v":10,"d":"10.00 TL"},{"v":12,"d":"12.00 TL"},{"v":2,"d":"2.00 TL"},{"v":1.5,"d":"1.50 TL"},null,{"v":14,"d":"14.00 TL"},{"v":7,"d":"7.00 TL"},{"$f":"IFERROR(ŞubatSatışları[Satış fiyatı]-(ŞubatSatışları[Satın alma fiyatı]+ŞubatSatışları[Çevrimiçi ücretler]+ŞubatSatışları[PayPal ücretleri]+ŞubatSatışları[Kredi Kartı ücretleri]),\"\")","v":{"v":-1.5,"d":"-1.50 TL"}},{"$f":"ŞubatSatışları[Nakliye ücretleri]-ŞubatSatışları[Nakliye ücretleri2]","v":{"v":7,"d":"7.00 TL"}},{"$f":"ŞubatSatışları[Satış karı/zararı]+ŞubatSatışları[Nakliye karı/zararı]","v":{"v":5.5,"d":"5.50 TL"}}]
[null,null,"Toplam",{"$f":"\"Satılan Öğeler: \"&SUBTOTAL(103,ŞubatSatışları[Ürün açıklaması])","v":"Satılan Öğeler: 5"},{"$f":"SUBTOTAL(109,ŞubatSatışları[Satın alma fiyatı])","v":{"v":77,"d":"77.00 TL"}},{"$f":"SUBTOTAL(109,ŞubatSatışları[Satış fiyatı])","v":{"v":312,"d":"312.00 TL"}},{"$f":"SUBTOTAL(109,ŞubatSatışları[Çevrimiçi ücretler])","v":{"v":13,"d":"13.00 TL"}},{"$f":"SUBTOTAL(109,ŞubatSatışları[PayPal ücretleri])","v":{"v":4.5,"d":"4.50 TL"}},{"$f":"SUBTOTAL(109,ŞubatSatışları[Kredi Kartı ücretleri])","v":{"v":5.2,"d":"5.20 TL"}},{"$f":"SUBTOTAL(109,ŞubatSatışları[Nakliye ücretleri])","v":{"v":48.5,"d":"48.50 TL"}},{"$f":"SUBTOTAL(109,ŞubatSatışları[Nakliye ücretleri2])","v":{"v":36.2,"d":"36.20 TL"}},{"$f":"SUBTOTAL(109,ŞubatSatışları[Satış karı/zararı])","v":{"v":212.3,"d":"212.30 TL"}},{"$f":"SUBTOTAL(109,ŞubatSatışları[Nakliye karı/zararı])","v":{"v":12.3,"d":"12.30 TL"}},{"$f":"SUBTOTAL(109,ŞubatSatışları[Toplam kar/zarar])","v":{"v":224.60000000000002,"d":"224.60 TL"}}]
["Kar/Zarar Eğilimi"]

{"sheet":"Mart","index":2,"n_rows":9,"n_cols":14,"rows_kept":9,"merged":[[3,0,4,0],[6,0,7,0]]}
["MART"]
["Çevrimiçi Satış",null,"Artırma Kodu","Ürün açıklaması","Satın alma fiyatı","Satış fiyatı","Çevrimiçi ücretler","PayPal ücretleri","Kredi Kartı ücretleri","Nakliye ücretleri","Nakliye ücretleri2","Satış karı/zararı","Nakliye karı/zararı","Toplam kar/zarar"]
["Yıl",{"$nulls":10},{"$f":"IFERROR(MartSatışları[Satış fiyatı]-(MartSatışları[Satın alma fiyatı]+MartSatışları[Çevrimiçi ücretler]+MartSatışları[PayPal ücretleri]+MartSatışları[Kredi Kartı ücretleri]),\"\")","v":{"v":0,"d":"0.00 TL"}},{"$f":"MartSatışları[Nakliye ücretleri]-MartSatışları[Nakliye ücretleri2]","v":{"v":0,"d":"0.00 TL"}},{"$f":"MartSatışları[Satış karı/zararı]+MartSatışları[Nakliye karı/zararı]","v":{"v":0,"d":"0.00 TL"}}]
[{"$f":"SatışYılı","v":2012},{"$nulls":10},{"$f":"IFERROR(MartSatışları[Satış fiyatı]-(MartSatışları[Satın alma fiyatı]+MartSatışları[Çevrimiçi ücretler]+MartSatışları[PayPal ücretleri]+MartSatışları[Kredi Kartı ücretleri]),\"\")","v":{"v":0,"d":"0.00 TL"}},{"$f":"MartSatışları[Nakliye ücretleri]-MartSatışları[Nakliye ücretleri2]","v":{"v":0,"d":"0.00 TL"}},{"$f":"MartSatışları[Satış karı/zararı]+MartSatışları[Nakliye karı/zararı]","v":{"v":0,"d":"0.00 TL"}}]
[{"$nulls":11},{"$f":"IFERROR(MartSatışları[Satış fiyatı]-(MartSatışları[Satın alma fiyatı]+MartSatışları[Çevrimiçi ücretler]+MartSatışları[PayPal ücretleri]+MartSatışları[Kredi Kartı ücretleri]),\"\")","v":{"v":0,"d":"0.00 TL"}},{"$f":"MartSatışları[Nakliye ücretleri]-MartSatışları[Nakliye ücretleri2]","v":{"v":0,"d":"0.00 TL"}},{"$f":"MartSatışları[Satış karı/zararı]+MartSatışları[Nakliye karı/zararı]","v":{"v":0,"d":"0.00 TL"}}]
["Toplam Kar/Zarar",{"$nulls":10},{"$f":"IFERROR(MartSatışları[Satış fiyatı]-(MartSatışları[Satın alma fiyatı]+MartSatışları[Çevrimiçi ücretler]+MartSatışları[PayPal ücretleri]+MartSatışları[Kredi Kartı ücretleri]),\"\")","v":{"v":0,"d":"0.00 TL"}},{"$f":"MartSatışları[Nakliye ücretleri]-MartSatışları[Nakliye ücretleri2]","v":{"v":0,"d":"0.00 TL"}},{"$f":"MartSatışları[Satış karı/zararı]+MartSatışları[Nakliye karı/zararı]","v":{"v":0,"d":"0.00 TL"}}]
[{"$f":"MartSatışları[[#Totals],[Toplam kar/zarar]]","v":{"v":0,"d":"0.00 TL"}},{"$nulls":10},{"$f":"IFERROR(MartSatışları[Satış fiyatı]-(MartSatışları[Satın alma fiyatı]+MartSatışları[Çevrimiçi ücretler]+MartSatışları[PayPal ücretleri]+MartSatışları[Kredi Kartı ücretleri]),\"\")","v":{"v":0,"d":"0.00 TL"}},{"$f":"MartSatışları[Nakliye ücretleri]-MartSatışları[Nakliye ücretleri2]","v":{"v":0,"d":"0.00 TL"}},{"$f":"MartSatışları[Satış karı/zararı]+MartSatışları[Nakliye karı/zararı]","v":{"v":0,"d":"0.00 TL"}}]
[null,null,"Toplam",{"$f":"\"Satılan Öğeler: \"&SUBTOTAL(103,MartSatışları[Ürün açıklaması])","v":"Satılan Öğeler: 0"},{"$f":"SUBTOTAL(109,MartSatışları[Satın alma fiyatı])","v":{"v":0,"d":"0.00 TL"}},{"$f":"SUBTOTAL(109,MartSatışları[Satış fiyatı])","v":{"v":0,"d":"0.00 TL"}},{"$f":"SUBTOTAL(109,MartSatışları[Çevrimiçi ücretler])","v":{"v":0,"d":"0.00 TL"}},{"$f":"SUBTOTAL(109,MartSatışları[PayPal ücretleri])","v":{"v":0,"d":"0.00 TL"}},{"$f":"SUBTOTAL(109,MartSatışları[Kredi Kartı ücretleri])","v":{"v":0,"d":"0.00 TL"}},{"$f":"SUBTOTAL(109,MartSatışları[Nakliye ücretleri])","v":{"v":0,"d":"0.00 TL"}},{"$f":"SUBTOTAL(109,MartSatışları[Nakliye ücretleri2])","v":{"v":0,"d":"0.00 TL"}},{"$f":"SUBTOTAL(109,MartSatışları[Satış karı/zararı])","v":{"v":0,"d":"0.00 TL"}},{"$f":"SUBTOTAL(109,MartSatışları[Nakliye karı/zararı])","v":{"v":0,"d":"0.00 TL"}},{"$f":"SUBTOTAL(109,MartSatışları[Toplam kar/zarar])","v":{"v":0,"d":"0.00 TL"}}]
["Kar/Zarar Eğilimi"]

{"sheet":"Nisan","index":3,"n_rows":9,"n_cols":14,"rows_kept":9,"merged":[[3,0,4,0],[6,0,7,0]]}
["NİSAN"]
["Çevrimiçi Satış",null,"Artırma Kodu","Ürün açıklaması","Satın alma fiyatı","Satış fiyatı","Çevrimiçi ücretler","PayPal ücretleri","Kredi Kartı ücretleri","Nakliye ücretleri","Nakliye ücretleri2","Satış karı/zararı","Nakliye karı/zararı","Toplam kar/zarar"]
["Yıl",{"$nulls":11},{"$f":"NisanSatışları[Nakliye ücretleri]-NisanSatışları[Nakliye ücretleri2]","v":{"v":0,"d":"0.00 TL"}},{"$f":"NisanSatışları[Satış karı/zararı]+NisanSatışları[Nakliye karı/zararı]","v":{"v":0,"d":"0.00 TL"}}]
[{"$f":"SatışYılı","v":2012},{"$nulls":11},{"$f":"NisanSatışları[Nakliye ücretleri]-NisanSatışları[Nakliye ücretleri2]","v":{"v":0,"d":"0.00 TL"}},{"$f":"NisanSatışları[Satış karı/zararı]+NisanSatışları[Nakliye karı/zararı]","v":{"v":0,"d":"0.00 TL"}}]
[{"$nulls":12},{"$f":"NisanSatışları[Nakliye ücretleri]-NisanSatışları[Nakliye ücretleri2]","v":{"v":0,"d":"0.00 TL"}},{"$f":"NisanSatışları[Satış karı/zararı]+NisanSatışları[Nakliye karı/zararı]","v":{"v":0,"d":"0.00 TL"}}]
["Toplam Kar/Zarar",{"$nulls":11},{"$f":"NisanSatışları[Nakliye ücretleri]-NisanSatışları[Nakliye ücretleri2]","v":{"v":0,"d":"0.00 TL"}},{"$f":"NisanSatışları[Satış karı/zararı]+NisanSatışları[Nakliye karı/zararı]","v":{"v":0,"d":"0.00 TL"}}]
[{"$f":"NisanSatışları[[#Totals],[Toplam kar/zarar]]","v":{"v":0,"d":"0.00 TL"}},{"$nulls":11},{"$f":"NisanSatışları[Nakliye ücretleri]-NisanSatışları[Nakliye ücretleri2]","v":{"v":0,"d":"0.00 TL"}},{"$f":"NisanSatışları[Satış karı/zararı]+NisanSatışları[Nakliye karı/zararı]","v":{"v":0,"d":"0.00 TL"}}]
[null,null,"Toplam",{"$f":"\"Satılan Öğeler: \"&SUBTOTAL(103,NisanSatışları[Ürün açıklaması])","v":"Satılan Öğeler: 0"},{"$f":"SUBTOTAL(109,NisanSatışları[Satın alma fiyatı])","v":{"v":0,"d":"0.00 TL"}},{"$f":"SUBTOTAL(109,NisanSatışları[Satış fiyatı])","v":{"v":0,"d":"0.00 TL"}},{"$f":"SUBTOTAL(109,NisanSatışları[Çevrimiçi ücretler])","v":{"v":0,"d":"0.00 TL"}},{"$f":"SUBTOTAL(109,NisanSatışları[PayPal ücretleri])","v":{"v":0,"d":"0.00 TL"}},{"$f":"SUBTOTAL(109,NisanSatışları[Kredi Kartı ücretleri])","v":{"v":0,"d":"0.00 TL"}},{"$f":"SUBTOTAL(109,NisanSatışları[Nakliye ücretleri])","v":{"v":0,"d":"0.00 TL"}},{"$f":"SUBTOTAL(109,NisanSatışları[Nakliye ücretleri2])","v":{"v":0,"d":"0.00 TL"}},{"$f":"SUBTOTAL(109,NisanSatışları[Satış karı/zararı])","v":{"v":0,"d":"0.00 TL"}},{"$f":"SUBTOTAL(109,NisanSatışları[Nakliye karı/zararı])","v":{"v":0,"d":"0.00 TL"}},{"$f":"SUBTOTAL(109,NisanSatışları[Toplam kar/zarar])","v":{"v":0,"d":"0.00 TL"}}]
["Kar/Zarar Eğilimi"]

{"sheet":"Mayıs","index":4,"n_rows":9,"n_cols":14,"rows_kept":9,"merged":[[3,0,4,0],[6,0,7,0]]}
["MAYIS"]
["Çevrimiçi Satış",null,"Artırma Kodu","Ürün açıklaması","Satın alma fiyatı","Satış fiyatı","Çevrimiçi ücretler","PayPal ücretleri","Kredi Kartı ücretleri","Nakliye ücretleri","Nakliye ücretleri2","Satış karı/zararı","Nakliye karı/zararı","Toplam kar/zarar"]
["Yıl",{"$nulls":11},{"$f":"MayısSatışları[Nakliye ücretleri]-MayısSatışları[Nakliye ücretleri2]","v":{"v":0,"d":"0.00 TL"}},{"$f":"MayısSatışları[Satış karı/zararı]+MayısSatışları[Nakliye karı/zararı]","v":{"v":0,"d":"0.00 TL"}}]
[{"$f":"SatışYılı","v":2012},{"$nulls":11},{"$f":"MayısSatışları[Nakliye ücretleri]-MayısSatışları[Nakliye ücretleri2]","v":{"v":0,"d":"0.00 TL"}},{"$f":"MayısSatışları[Satış karı/zararı]+MayısSatışları[Nakliye karı/zararı]","v":{"v":0,"d":"0.00 TL"}}]
[{"$nulls":12},{"$f":"MayısSatışları[Nakliye ücretleri]-MayısSatışları[Nakliye ücretleri2]","v":{"v":0,"d":"0.00 TL"}},{"$f":"MayısSatışları[Satış karı/zararı]+MayısSatışları[Nakliye karı/zararı]","v":{"v":0,"d":"0.00 TL"}}]
["Toplam Kar/Zarar",{"$nulls":11},{"$f":"MayısSatışları[Nakliye ücretleri]-MayısSatışları[Nakliye ücretleri2]","v":{"v":0,"d":"0.00 TL"}},{"$f":"MayısSatışları[Satış karı/zararı]+MayısSatışları[Nakliye karı/zararı]","v":{"v":0,"d":"0.00 TL"}}]
[{"$f":"MayısSatışları[[#Totals],[Toplam kar/zarar]]","v":{"v":0,"d":"0.00 TL"}},{"$nulls":11},{"$f":"MayısSatışları[Nakliye ücretleri]-MayısSatışları[Nakliye ücretleri2]","v":{"v":0,"d":"0.00 TL"}},{"$f":"MayısSatışları[Satış karı/zararı]+MayısSatışları[Nakliye karı/zararı]","v":{"v":0,"d":"0.00 TL"}}]
[null,null,"Toplam",{"$f":"\"Satılan Öğeler: \"&SUBTOTAL(103,MayısSatışları[Ürün açıklaması])","v":"Satılan Öğeler: 0"},{"$f":"SUBTOTAL(109,MayısSatışları[Satın alma fiyatı])","v":{"v":0,"d":"0.00 TL"}},{"$f":"SUBTOTAL(109,MayısSatışları[Satış fiyatı])","v":{"v":0,"d":"0.00 TL"}},{"$f":"SUBTOTAL(109,MayısSatışları[Çevrimiçi ücretler])","v":{"v":0,"d":"0.00 TL"}},{"$f":"SUBTOTAL(109,MayısSatışları[PayPal ücretleri])","v":{"v":0,"d":"0.00 TL"}},{"$f":"SUBTOTAL(109,MayısSatışları[Kredi Kartı ücretleri])","v":{"v":0,"d":"0.00 TL"}},{"$f":"SUBTOTAL(109,MayısSatışları[Nakliye ücretleri])","v":{"v":0,"d":"0.00 TL"}},{"$f":"SUBTOTAL(109,MayısSatışları[Nakliye ücretleri2])","v":{"v":0,"d":"0.00 TL"}},{"$f":"SUBTOTAL(109,MayısSatışları[Satış karı/zararı])","v":{"v":0,"d":"0.00 TL"}},{"$f":"SUBTOTAL(109,MayısSatışları[Nakliye karı/zararı])","v":{"v":0,"d":"0.00 TL"}},{"$f":"SUBTOTAL(109,MayısSatışları[Toplam kar/zarar])","v":{"v":0,"d":"0.00 TL"}}]
["Kar/Zarar Eğilimi"]

{"sheet":"Haziran","index":5,"n_rows":9,"n_cols":14,"rows_kept":9,"merged":[[3,0,4,0],[6,0,7,0]]}
["HAZİRAN"]
["Çevrimiçi Satış",null,"Artırma Kodu","Ürün açıklaması","Satın alma fiyatı","Satış fiyatı","Çevrimiçi ücretler","PayPal ücretleri","Kredi Kartı ücretleri","Nakliye ücretleri","Nakliye ücretleri2","Satış karı/zararı","Nakliye karı/zararı","Toplam kar/zarar"]
["Yıl",{"$nulls":11},{"$f":"HaziranSatışları[Nakliye ücretleri]-HaziranSatışları[Nakliye ücretleri2]","v":{"v":0,"d":"0.00 TL"}},{"$f":"HaziranSatışları[Satış karı/zararı]+HaziranSatışları[Nakliye karı/zararı]","v":{"v":0,"d":"0.00 TL"}}]
[{"$f":"SatışYılı","v":2012},{"$nulls":11},{"$f":"HaziranSatışları[Nakliye ücretleri]-HaziranSatışları[Nakliye ücretleri2]","v":{"v":0,"d":"0.00 TL"}},{"$f":"HaziranSatışları[Satış karı/zararı]+HaziranSatışları[Nakliye karı/zararı]","v":{"v":0,"d":"0.00 TL"}}]
[{"$nulls":12},{"$f":"HaziranSatışları[Nakliye ücretleri]-HaziranSatışları[Nakliye ücretleri2]","v":{"v":0,"d":"0.00 TL"}},{"$f":"HaziranSatışları[Satış karı/zararı]+HaziranSatışları[Nakliye karı/zararı]","v":{"v":0,"d":"0.00 TL"}}]
["Toplam Kar/Zarar",{"$nulls":11},{"$f":"HaziranSatışları[Nakliye ücretleri]-HaziranSatışları[Nakliye ücretleri2]","v":{"v":0,"d":"0.00 TL"}},{"$f":"HaziranSatışları[Satış karı/zararı]+HaziranSatışları[Nakliye karı/zararı]","v":{"v":0,"d":"0.00 TL"}}]
[{"$f":"HaziranSatışları[[#Totals],[Toplam kar/zarar]]","v":{"v":0,"d":"0.00 TL"}},{"$nulls":11},{"$f":"HaziranSatışları[Nakliye ücretleri]-HaziranSatışları[Nakliye ücretleri2]","v":{"v":0,"d":"0.00 TL"}},{"$f":"HaziranSatışları[Satış karı/zararı]+HaziranSatışları[Nakliye karı/zararı]","v":{"v":0,"d":"0.00 TL"}}]
[null,null,"Toplam",{"$f":"\"Satılan Öğeler: \"&SUBTOTAL(103,HaziranSatışları[Ürün açıklaması])","v":"Satılan Öğeler: 0"},{"$f":"SUBTOTAL(109,HaziranSatışları[Satın alma fiyatı])","v":{"v":0,"d":"0.00 TL"}},{"$f":"SUBTOTAL(109,HaziranSatışları[Satış fiyatı])","v":{"v":0,"d":"0.00 TL"}},{"$f":"SUBTOTAL(109,HaziranSatışları[Çevrimiçi ücretler])","v":{"v":0,"d":"0.00 TL"}},{"$f":"SUBTOTAL(109,HaziranSatışları[PayPal ücretleri])","v":{"v":0,"d":"0.00 TL"}},{"$f":"SUBTOTAL(109,HaziranSatışları[Kredi Kartı ücretleri])","v":{"v":0,"d":"0.00 TL"}},{"$f":"SUBTOTAL(109,HaziranSatışları[Nakliye ücretleri])","v":{"v":0,"d":"0.00 TL"}},{"$f":"SUBTOTAL(109,HaziranSatışları[Nakliye ücretleri2])","v":{"v":0,"d":"0.00 TL"}},{"$f":"SUBTOTAL(109,HaziranSatışları[Satış karı/zararı])","v":{"v":0,"d":"0.00 TL"}},{"$f":"SUBTOTAL(109,HaziranSatışları[Nakliye karı/zararı])","v":{"v":0,"d":"0.00 TL"}},{"$f":"SUBTOTAL(109,HaziranSatışları[Toplam kar/zarar])","v":{"v":0,"d":"0.00 TL"}}]
["Kar/Zarar Eğilimi"]

{"sheet":"Temmuz","index":6,"n_rows":9,"n_cols":14,"rows_kept":9,"merged":[[3,0,4,0],[6,0,7,0]]}
["TEMMUZ"]
["Çevrimiçi Satış",null,"Artırma Kodu","Ürün açıklaması","Satın alma fiyatı","Satış fiyatı","Çevrimiçi ücretler","PayPal ücretleri","Kredi Kartı ücretleri","Nakliye ücretleri","Nakliye ücretleri2","Satış karı/zararı","Nakliye karı/zararı","Toplam kar/zarar"]
["Yıl",{"$nulls":11},{"$f":"TemmuzSatışları[Nakliye ücretleri]-TemmuzSatışları[Nakliye ücretleri2]","v":{"v":0,"d":"0.00 TL"}},{"$f":"TemmuzSatışları[Satış karı/zararı]+TemmuzSatışları[Nakliye karı/zararı]","v":{"v":0,"d":"0.00 TL"}}]
[{"$f":"SatışYılı","v":2012},{"$nulls":11},{"$f":"TemmuzSatışları[Nakliye ücretleri]-TemmuzSatışları[Nakliye ücretleri2]","v":{"v":0,"d":"0.00 TL"}},{"$f":"TemmuzSatışları[Satış karı/zararı]+TemmuzSatışları[Nakliye karı/zararı]","v":{"v":0,"d":"0.00 TL"}}]
[{"$nulls":12},{"$f":"TemmuzSatışları[Nakliye ücretleri]-TemmuzSatışları[Nakliye ücretleri2]","v":{"v":0,"d":"0.00 TL"}},{"$f":"TemmuzSatışları[Satış karı/zararı]+TemmuzSatışları[Nakliye karı/zararı]","v":{"v":0,"d":"0.00 TL"}}]
["Toplam Kar/Zarar",{"$nulls":11},{"$f":"TemmuzSatışları[Nakliye ücretleri]-TemmuzSatışları[Nakliye ücretleri2]","v":{"v":0,"d":"0.00 TL"}},{"$f":"TemmuzSatışları[Satış karı/zararı]+TemmuzSatışları[Nakliye karı/zararı]","v":{"v":0,"d":"0.00 TL"}}]
[{"$f":"TemmuzSatışları[[#Totals],[Toplam kar/zarar]]","v":{"v":0,"d":"0.00 TL"}},{"$nulls":11},{"$f":"TemmuzSatışları[Nakliye ücretleri]-TemmuzSatışları[Nakliye ücretleri2]","v":{"v":0,"d":"0.00 TL"}},{"$f":"TemmuzSatışları[Satış karı/zararı]+TemmuzSatışları[Nakliye karı/zararı]","v":{"v":0,"d":"0.00 TL"}}]
[null,null,"Toplam",{"$f":"\"Satılan Öğeler: \"&SUBTOTAL(103,TemmuzSatışları[Ürün açıklaması])","v":"Satılan Öğeler: 0"},{"$f":"SUBTOTAL(109,TemmuzSatışları[Satın alma fiyatı])","v":{"v":0,"d":"0.00 TL"}},{"$f":"SUBTOTAL(109,TemmuzSatışları[Satış fiyatı])","v":{"v":0,"d":"0.00 TL"}},{"$f":"SUBTOTAL(109,TemmuzSatışları[Çevrimiçi ücretler])","v":{"v":0,"d":"0.00 TL"}},{"$f":"SUBTOTAL(109,TemmuzSatışları[PayPal ücretleri])","v":{"v":0,"d":"0.00 TL"}},{"$f":"SUBTOTAL(109,TemmuzSatışları[Kredi Kartı ücretleri])","v":{"v":0,"d":"0.00 TL"}},{"$f":"SUBTOTAL(109,TemmuzSatışları[Nakliye ücretleri])","v":{"v":0,"d":"0.00 TL"}},{"$f":"SUBTOTAL(109,TemmuzSatışları[Nakliye ücretleri2])","v":{"v":0,"d":"0.00 TL"}},{"$f":"SUBTOTAL(109,TemmuzSatışları[Satış karı/zararı])","v":{"v":0,"d":"0.00 TL"}},{"$f":"SUBTOTAL(109,TemmuzSatışları[Nakliye karı/zararı])","v":{"v":0,"d":"0.00 TL"}},{"$f":"SUBTOTAL(109,TemmuzSatışları[Toplam kar/zarar])","v":{"v":0,"d":"0.00 TL"}}]
["Kar/Zarar Eğilimi"]

{"sheet":"Ağustos","index":7,"n_rows":9,"n_cols":14,"rows_kept":9,"merged":[[3,0,4,0],[6,0,7,0]]}
["AĞUSTOS"]
["Çevrimiçi Satış",null,"Artırma Kodu","Ürün açıklaması","Satın alma fiyatı","Satış fiyatı","Çevrimiçi ücretler","PayPal ücretleri","Kredi Kartı ücretleri","Nakliye ücretleri","Nakliye ücretleri2","Satış karı/zararı","Nakliye karı/zararı","Toplam kar/zarar"]
["Yıl",{"$nulls":11},{"$f":"AğustosSatışları[Nakliye ücretleri]-AğustosSatışları[Nakliye ücretleri2]","v":{"v":0,"d":"0.00 TL"}},{"$f":"AğustosSatışları[Satış karı/zararı]+AğustosSatışları[Nakliye karı/zararı]","v":{"v":0,"d":"0.00 TL"}}]
[{"$f":"SatışYılı","v":2012},{"$nulls":11},{"$f":"AğustosSatışları[Nakliye ücretleri]-AğustosSatışları[Nakliye ücretleri2]","v":{"v":0,"d":"0.00 TL"}},{"$f":"AğustosSatışları[Satış karı/zararı]+AğustosSatışları[Nakliye karı/zararı]","v":{"v":0,"d":"0.00 TL"}}]
[{"$nulls":12},{"$f":"AğustosSatışları[Nakliye ücretleri]-AğustosSatışları[Nakliye ücretleri2]","v":{"v":0,"d":"0.00 TL"}},{"$f":"AğustosSatışları[Satış karı/zararı]+AğustosSatışları[Nakliye karı/zararı]","v":{"v":0,"d":"0.00 TL"}}]
["Toplam Kar/Zarar",{"$nulls":11},{"$f":"AğustosSatışları[Nakliye ücretleri]-AğustosSatışları[Nakliye ücretleri2]","v":{"v":0,"d":"0.00 TL"}},{"$f":"AğustosSatışları[Satış karı/zararı]+AğustosSatışları[Nakliye karı/zararı]","v":{"v":0,"d":"0.00 TL"}}]
[{"$f":"AğustosSatışları[[#Totals],[Toplam kar/zarar]]","v":{"v":0,"d":"0.00 TL"}},{"$nulls":11},{"$f":"AğustosSatışları[Nakliye ücretleri]-AğustosSatışları[Nakliye ücretleri2]","v":{"v":0,"d":"0.00 TL"}},{"$f":"AğustosSatışları[Satış karı/zararı]+AğustosSatışları[Nakliye karı/zararı]","v":{"v":0,"d":"0.00 TL"}}]
[null,null,"Toplam",{"$f":"\"Satılan Öğeler: \"&SUBTOTAL(103,AğustosSatışları[Ürün açıklaması])","v":"Satılan Öğeler: 0"},{"$f":"SUBTOTAL(109,AğustosSatışları[Satın alma fiyatı])","v":{"v":0,"d":"0.00 TL"}},{"$f":"SUBTOTAL(109,AğustosSatışları[Satış fiyatı])","v":{"v":0,"d":"0.00 TL"}},{"$f":"SUBTOTAL(109,AğustosSatışları[Çevrimiçi ücretler])","v":{"v":0,"d":"0.00 TL"}},{"$f":"SUBTOTAL(109,AğustosSatışları[PayPal ücretleri])","v":{"v":0,"d":"0.00 TL"}},{"$f":"SUBTOTAL(109,AğustosSatışları[Kredi Kartı ücretleri])","v":{"v":0,"d":"0.00 TL"}},{"$f":"SUBTOTAL(109,AğustosSatışları[Nakliye ücretleri])","v":{"v":0,"d":"0.00 TL"}},{"$f":"SUBTOTAL(109,AğustosSatışları[Nakliye ücretleri2])","v":{"v":0,"d":"0.00 TL"}},{"$f":"SUBTOTAL(109,AğustosSatışları[Satış karı/zararı])","v":{"v":0,"d":"0.00 TL"}},{"$f":"SUBTOTAL(109,AğustosSatışları[Nakliye karı/zararı])","v":{"v":0,"d":"0.00 TL"}},{"$f":"SUBTOTAL(109,AğustosSatışları[Toplam kar/zarar])","v":{"v":0,"d":"0.00 TL"}}]
["Kar/Zarar Eğilimi"]

{"sheet":"Eylül","index":8,"n_rows":9,"n_cols":14,"rows_kept":9,"merged":[[3,0,4,0],[6,0,7,0]]}
["EYLÜL"]
["Çevrimiçi Satış",null,"Artırma Kodu","Ürün açıklaması","Satın alma fiyatı","Satış fiyatı","Çevrimiçi ücretler","PayPal ücretleri","Kredi Kartı ücretleri","Nakliye ücretleri","Nakliye ücretleri2","Satış karı/zararı","Nakliye karı/zararı","Toplam kar/zarar"]
["Yıl",{"$nulls":11},{"$f":"EylülSatışları[Nakliye ücretleri]-EylülSatışları[Nakliye ücretleri2]","v":{"v":0,"d":"0.00 TL"}},{"$f":"EylülSatışları[Satış karı/zararı]+EylülSatışları[Nakliye karı/zararı]","v":{"v":0,"d":"0.00 TL"}}]
[{"$f":"SatışYılı","v":2012},{"$nulls":11},{"$f":"EylülSatışları[Nakliye ücretleri]-EylülSatışları[Nakliye ücretleri2]","v":{"v":0,"d":"0.00 TL"}},{"$f":"EylülSatışları[Satış karı/zararı]+EylülSatışları[Nakliye karı/zararı]","v":{"v":0,"d":"0.00 TL"}}]
[{"$nulls":12},{"$f":"EylülSatışları[Nakliye ücretleri]-EylülSatışları[Nakliye ücretleri2]","v":{"v":0,"d":"0.00 TL"}},{"$f":"EylülSatışları[Satış karı/zararı]+EylülSatışları[Nakliye karı/zararı]","v":{"v":0,"d":"0.00 TL"}}]
["Toplam Kar/Zarar",{"$nulls":11},{"$f":"EylülSatışları[Nakliye ücretleri]-EylülSatışları[Nakliye ücretleri2]","v":{"v":0,"d":"0.00 TL"}},{"$f":"EylülSatışları[Satış karı/zararı]+EylülSatışları[Nakliye karı/zararı]","v":{"v":0,"d":"0.00 TL"}}]
[{"$f":"EylülSatışları[[#Totals],[Toplam kar/zarar]]","v":{"v":0,"d":"0.00 TL"}},{"$nulls":11},{"$f":"EylülSatışları[Nakliye ücretleri]-EylülSatışları[Nakliye ücretleri2]","v":{"v":0,"d":"0.00 TL"}},{"$f":"EylülSatışları[Satış karı/zararı]+EylülSatışları[Nakliye karı/zararı]","v":{"v":0,"d":"0.00 TL"}}]
[null,null,"Toplam",{"$f":"\"Satılan Öğeler: \"&SUBTOTAL(103,EylülSatışları[Ürün açıklaması])","v":"Satılan Öğeler: 0"},{"$f":"SUBTOTAL(109,EylülSatışları[Satın alma fiyatı])","v":{"v":0,"d":"0.00 TL"}},{"$f":"SUBTOTAL(109,EylülSatışları[Satış fiyatı])","v":{"v":0,"d":"0.00 TL"}},{"$f":"SUBTOTAL(109,EylülSatışları[Çevrimiçi ücretler])","v":{"v":0,"d":"0.00 TL"}},{"$f":"SUBTOTAL(109,EylülSatışları[PayPal ücretleri])","v":{"v":0,"d":"0.00 TL"}},{"$f":"SUBTOTAL(109,EylülSatışları[Kredi Kartı ücretleri])","v":{"v":0,"d":"0.00 TL"}},{"$f":"SUBTOTAL(109,EylülSatışları[Nakliye ücretleri])","v":{"v":0,"d":"0.00 TL"}},{"$f":"SUBTOTAL(109,EylülSatışları[Nakliye ücretleri2])","v":{"v":0,"d":"0.00 TL"}},{"$f":"SUBTOTAL(109,EylülSatışları[Satış karı/zararı])","v":{"v":0,"d":"0.00 TL"}},{"$f":"SUBTOTAL(109,EylülSatışları[Nakliye karı/zararı])","v":{"v":0,"d":"0.00 TL"}},{"$f":"SUBTOTAL(109,EylülSatışları[Toplam kar/zarar])","v":{"v":0,"d":"0.00 TL"}}]
["Kar/Zarar Eğilimi"]

{"sheet":"Ekim","index":9,"n_rows":9,"n_cols":14,"rows_kept":9,"merged":[[3,0,4,0],[6,0,7,0]]}
["EKİM"]
["Çevrimiçi Satış",null,"Artırma Kodu","Ürün açıklaması","Satın alma fiyatı","Satış fiyatı","Çevrimiçi ücretler","PayPal ücretleri","Kredi Kartı ücretleri","Nakliye ücretleri","Nakliye ücretleri2","Satış karı/zararı","Nakliye karı/zararı","Toplam kar/zarar"]
["Yıl",{"$nulls":11},{"$f":"EkimSatışları[Nakliye ücretleri]-EkimSatışları[Nakliye ücretleri2]","v":{"v":0,"d":"0.00 TL"}},{"$f":"EkimSatışları[Satış karı/zararı]+EkimSatışları[Nakliye karı/zararı]","v":{"v":0,"d":"0.00 TL"}}]
[{"$f":"SatışYılı","v":2012},{"$nulls":11},{"$f":"EkimSatışları[Nakliye ücretleri]-EkimSatışları[Nakliye ücretleri2]","v":{"v":0,"d":"0.00 TL"}},{"$f":"EkimSatışları[Satış karı/zararı]+EkimSatışları[Nakliye karı/zararı]","v":{"v":0,"d":"0.00 TL"}}]
[{"$nulls":12},{"$f":"EkimSatışları[Nakliye ücretleri]-EkimSatışları[Nakliye ücretleri2]","v":{"v":0,"d":"0.00 TL"}},{"$f":"EkimSatışları[Satış karı/zararı]+EkimSatışları[Nakliye karı/zararı]","v":{"v":0,"d":"0.00 TL"}}]
["Toplam Kar/Zarar",{"$nulls":11},{"$f":"EkimSatışları[Nakliye ücretleri]-EkimSatışları[Nakliye ücretleri2]","v":{"v":0,"d":"0.00 TL"}},{"$f":"EkimSatışları[Satış karı/zararı]+EkimSatışları[Nakliye karı/zararı]","v":{"v":0,"d":"0.00 TL"}}]
[{"$f":"EkimSatışları[[#Totals],[Toplam kar/zarar]]","v":{"v":0,"d":"0.00 TL"}},{"$nulls":11},{"$f":"EkimSatışları[Nakliye ücretleri]-EkimSatışları[Nakliye ücretleri2]","v":{"v":0,"d":"0.00 TL"}},{"$f":"EkimSatışları[Satış karı/zararı]+EkimSatışları[Nakliye karı/zararı]","v":{"v":0,"d":"0.00 TL"}}]
[null,null,"Toplam",{"$f":"\"Satılan Öğeler: \"&SUBTOTAL(103,EkimSatışları[Ürün açıklaması])","v":"Satılan Öğeler: 0"},{"$f":"SUBTOTAL(109,EkimSatışları[Satın alma fiyatı])","v":{"v":0,"d":"0.00 TL"}},{"$f":"SUBTOTAL(109,EkimSatışları[Satış fiyatı])","v":{"v":0,"d":"0.00 TL"}},{"$f":"SUBTOTAL(109,EkimSatışları[Çevrimiçi ücretler])","v":{"v":0,"d":"0.00 TL"}},{"$f":"SUBTOTAL(109,EkimSatışları[PayPal ücretleri])","v":{"v":0,"d":"0.00 TL"}},{"$f":"SUBTOTAL(109,EkimSatışları[Kredi Kartı ücretleri])","v":{"v":0,"d":"0.00 TL"}},{"$f":"SUBTOTAL(109,EkimSatışları[Nakliye ücretleri])","v":{"v":0,"d":"0.00 TL"}},{"$f":"SUBTOTAL(109,EkimSatışları[Nakliye ücretleri2])","v":{"v":0,"d":"0.00 TL"}},{"$f":"SUBTOTAL(109,EkimSatışları[Satış karı/zararı])","v":{"v":0,"d":"0.00 TL"}},{"$f":"SUBTOTAL(109,EkimSatışları[Nakliye karı/zararı])","v":{"v":0,"d":"0.00 TL"}},{"$f":"SUBTOTAL(109,EkimSatışları[Toplam kar/zarar])","v":{"v":0,"d":"0.00 TL"}}]
["Kar/Zarar Eğilimi"]

{"sheet":"Kasım","index":10,"n_rows":9,"n_cols":14,"rows_kept":9,"merged":[[3,0,4,0],[6,0,7,0]]}
["KASIM"]
["Çevrimiçi Satış",null,"Artırma Kodu","Ürün açıklaması","Satın alma fiyatı","Satış fiyatı","Çevrimiçi ücretler","PayPal ücretleri","Kredi Kartı ücretleri","Nakliye ücretleri","Nakliye ücretleri2","Satış karı/zararı","Nakliye karı/zararı","Toplam kar/zarar"]
["Yıl",{"$nulls":11},{"$f":"KasımSatışları[Nakliye ücretleri]-KasımSatışları[Nakliye ücretleri2]","v":{"v":0,"d":"0.00 TL"}},{"$f":"KasımSatışları[Satış karı/zararı]+KasımSatışları[Nakliye karı/zararı]","v":{"v":0,"d":"0.00 TL"}}]
[{"$f":"SatışYılı","v":2012},{"$nulls":11},{"$f":"KasımSatışları[Nakliye ücretleri]-KasımSatışları[Nakliye ücretleri2]","v":{"v":0,"d":"0.00 TL"}},{"$f":"KasımSatışları[Satış karı/zararı]+KasımSatışları[Nakliye karı/zararı]","v":{"v":0,"d":"0.00 TL"}}]
[{"$nulls":12},{"$f":"KasımSatışları[Nakliye ücretleri]-KasımSatışları[Nakliye ücretleri2]","v":{"v":0,"d":"0.00 TL"}},{"$f":"KasımSatışları[Satış karı/zararı]+KasımSatışları[Nakliye karı/zararı]","v":{"v":0,"d":"0.00 TL"}}]
["Toplam Kar/Zarar",{"$nulls":11},{"$f":"KasımSatışları[Nakliye ücretleri]-KasımSatışları[Nakliye ücretleri2]","v":{"v":0,"d":"0.00 TL"}},{"$f":"KasımSatışları[Satış karı/zararı]+KasımSatışları[Nakliye karı/zararı]","v":{"v":0,"d":"0.00 TL"}}]
[{"$f":"KasımSatışları[[#Totals],[Toplam kar/zarar]]","v":{"v":0,"d":"0.00 TL"}},{"$nulls":11},{"$f":"KasımSatışları[Nakliye ücretleri]-KasımSatışları[Nakliye ücretleri2]","v":{"v":0,"d":"0.00 TL"}},{"$f":"KasımSatışları[Satış karı/zararı]+KasımSatışları[Nakliye karı/zararı]","v":{"v":0,"d":"0.00 TL"}}]
[null,null,"Toplam",{"$f":"\"Satılan Öğeler: \"&SUBTOTAL(103,KasımSatışları[Ürün açıklaması])","v":"Satılan Öğeler: 0"},{"$f":"SUBTOTAL(109,KasımSatışları[Satın alma fiyatı])","v":{"v":0,"d":"0.00 TL"}},{"$f":"SUBTOTAL(109,KasımSatışları[Satış fiyatı])","v":{"v":0,"d":"0.00 TL"}},{"$f":"SUBTOTAL(109,KasımSatışları[Çevrimiçi ücretler])","v":{"v":0,"d":"0.00 TL"}},{"$f":"SUBTOTAL(109,KasımSatışları[PayPal ücretleri])","v":{"v":0,"d":"0.00 TL"}},{"$f":"SUBTOTAL(109,KasımSatışları[Kredi Kartı ücretleri])","v":{"v":0,"d":"0.00 TL"}},{"$f":"SUBTOTAL(109,KasımSatışları[Nakliye ücretleri])","v":{"v":0,"d":"0.00 TL"}},{"$f":"SUBTOTAL(109,KasımSatışları[Nakliye ücretleri2])","v":{"v":0,"d":"0.00 TL"}},{"$f":"SUBTOTAL(109,KasımSatışları[Satış karı/zararı])","v":{"v":0,"d":"0.00 TL"}},{"$f":"SUBTOTAL(109,KasımSatışları[Nakliye karı/zararı])","v":{"v":0,"d":"0.00 TL"}},{"$f":"SUBTOTAL(109,KasımSatışları[Toplam kar/zarar])","v":{"v":0,"d":"0.00 TL"}}]
["Kar/Zarar Eğilimi"]

{"sheet":"Aralık","index":11,"n_rows":9,"n_cols":14,"rows_kept":9,"merged":[[3,0,4,0],[6,0,7,0]]}
["ARALIK"]
["Çevrimiçi Satış",null,"Artırma Kodu","Ürün açıklaması","Satın alma fiyatı","Satış fiyatı","Çevrimiçi ücretler","PayPal ücretleri","Kredi Kartı ücretleri","Nakliye ücretleri","Nakliye ücretleri2","Satış karı/zararı","Nakliye karı/zararı","Toplam kar/zarar"]
["Yıl",{"$nulls":11},{"$f":"AralıkSatışları[Nakliye ücretleri]-AralıkSatışları[Nakliye ücretleri2]","v":{"v":0,"d":"0.00 TL"}},{"$f":"AralıkSatışları[Satış karı/zararı]+AralıkSatışları[Nakliye karı/zararı]","v":{"v":0,"d":"0.00 TL"}}]
[{"$f":"SatışYılı","v":2012},{"$nulls":11},{"$f":"AralıkSatışları[Nakliye ücretleri]-AralıkSatışları[Nakliye ücretleri2]","v":{"v":0,"d":"0.00 TL"}},{"$f":"AralıkSatışları[Satış karı/zararı]+AralıkSatışları[Nakliye karı/zararı]","v":{"v":0,"d":"0.00 TL"}}]
[{"$nulls":12},{"$f":"AralıkSatışları[Nakliye ücretleri]-AralıkSatışları[Nakliye ücretleri2]","v":{"v":0,"d":"0.00 TL"}},{"$f":"AralıkSatışları[Satış karı/zararı]+AralıkSatışları[Nakliye karı/zararı]","v":{"v":0,"d":"0.00 TL"}}]
["Toplam Kar/Zarar",{"$nulls":11},{"$f":"AralıkSatışları[Nakliye ücretleri]-AralıkSatışları[Nakliye ücretleri2]","v":{"v":0,"d":"0.00 TL"}},{"$f":"AralıkSatışları[Satış karı/zararı]+AralıkSatışları[Nakliye karı/zararı]","v":{"v":0,"d":"0.00 TL"}}]
[{"$f":"AralıkSatışları[[#Totals],[Toplam kar/zarar]]","v":{"v":0,"d":"0.00 TL"}},{"$nulls":11},{"$f":"AralıkSatışları[Nakliye ücretleri]-AralıkSatışları[Nakliye ücretleri2]","v":{"v":0,"d":"0.00 TL"}},{"$f":"AralıkSatışları[Satış karı/zararı]+AralıkSatışları[Nakliye karı/zararı]","v":{"v":0,"d":"0.00 TL"}}]
[null,null,"Toplam",{"$f":"\"Satılan Öğeler: \"&SUBTOTAL(103,AralıkSatışları[Ürün açıklaması])","v":"Satılan Öğeler: 0"},{"$f":"SUBTOTAL(109,AralıkSatışları[Satın alma fiyatı])","v":{"v":0,"d":"0.00 TL"}},{"$f":"SUBTOTAL(109,AralıkSatışları[Satış fiyatı])","v":{"v":0,"d":"0.00 TL"}},{"$f":"SUBTOTAL(109,AralıkSatışları[Çevrimiçi ücretler])","v":{"v":0,"d":"0.00 TL"}},{"$f":"SUBTOTAL(109,AralıkSatışları[PayPal ücretleri])","v":{"v":0,"d":"0.00 TL"}},{"$f":"SUBTOTAL(109,AralıkSatışları[Kredi Kartı ücretleri])","v":{"v":0,"d":"0.00 TL"}},{"$f":"SUBTOTAL(109,AralıkSatışları[Nakliye ücretleri])","v":{"v":0,"d":"0.00 TL"}},{"$f":"SUBTOTAL(109,AralıkSatışları[Nakliye ücretleri2])","v":{"v":0,"d":"0.00 TL"}},{"$f":"SUBTOTAL(109,AralıkSatışları[Satış karı/zararı])","v":{"v":0,"d":"0.00 TL"}},{"$f":"SUBTOTAL(109,AralıkSatışları[Nakliye karı/zararı])","v":{"v":0,"d":"0.00 TL"}},{"$f":"SUBTOTAL(109,AralıkSatışları[Toplam kar/zarar])","v":{"v":0,"d":"0.00 TL"}}]
["Kar/Zarar Eğilimi"]

{"sheet":"Yılbaşından Bugüne Özet","index":12,"n_rows":16,"n_cols":11,"rows_kept":16,"merged":[[3,0,4,0],[6,0,7,0]]}
["YIL BAŞINDAN BUGÜNE"]
["Özet",null,"Kar/Zarar",{"$nulls":4},"Yılbaşından Bugüne Kar/Zarar"]
["Yıl",{"$nulls":6},"Ay","Satış karı/zararı","Nakliye karı/zararı","Toplam kar/zarar"]
[{"$f":"SatışYılı","v":2012},{"$nulls":6},"Ocak",{"$f":"OcakSatışları[[#Totals],[Satış karı/zararı]]","v":{"v":79.5,"d":"79.50 TL"}},{"$f":"OcakSatışları[[#Totals],[Nakliye karı/zararı]]","v":{"v":9.5,"d":"9.50 TL"}},{"$f":"IF(AND(YılBaşındanBugüneÖzeti[[#This Row],[Satış karı/zararı]]<>\"\",YılBaşındanBugüneÖzeti[[#This Row],[Nakliye karı/zararı]]<>\"\"),YılBaşındanBugüneÖzeti[[#This Row],[Satış karı/zararı]]+YılBaşındanBugüneÖzeti[[#This Row],[Nakliye karı/zararı]],\"\")","v":{"v":89,"d":"89.00 TL"}}]
[{"$nulls":7},"Şubat",{"$f":"ŞubatSatışları[[#Totals],[Satış karı/zararı]]","v":{"v":212.3,"d":"212.30 TL"}},{"$f":"ŞubatSatışları[[#Totals],[Nakliye karı/zararı]]","v":{"v":12.3,"d":"12.30 TL"}},{"$f":"IF(AND(YılBaşındanBugüneÖzeti[[#This Row],[Satış karı/zararı]]<>\"\",YılBaşındanBugüneÖzeti[[#This Row],[Nakliye karı/zararı]]<>\"\"),YılBaşındanBugüneÖzeti[[#This Row],[Satış karı/zararı]]+YılBaşındanBugüneÖzeti[[#This Row],[Nakliye karı/zararı]],\"\")","v":{"v":224.60000000000002,"d":"224.60 TL"}}]
["Aylık Satış Eğilimi:",{"$nulls":6},"Mart",{"$f":"MartSatışları[[#Totals],[Satış karı/zararı]]","v":{"v":0,"d":"0.00 TL"}},{"$f":"MartSatışları[[#Totals],[Nakliye karı/zararı]]","v":{"v":0,"d":"0.00 TL"}},{"$f":"IF(AND(YılBaşındanBugüneÖzeti[[#This Row],[Satış karı/zararı]]<>\"\",YılBaşındanBugüneÖzeti[[#This Row],[Nakliye karı/zararı]]<>\"\"),YılBaşındanBugüneÖzeti[[#This Row],[Satış karı/zararı]]+YılBaşındanBugüneÖzeti[[#This Row],[Nakliye karı/zararı]],\"\")","v":{"v":0,"d":"0.00 TL"}}]
[{"$nulls":7},"Nisan",{"$f":"NisanSatışları[[#Totals],[Satış karı/zararı]]","v":{"v":0,"d":"0.00 TL"}},{"$f":"NisanSatışları[[#Totals],[Nakliye karı/zararı]]","v":{"v":0,"d":"0.00 TL"}},{"$f":"IF(AND(YılBaşındanBugüneÖzeti[[#This Row],[Satış karı/zararı]]<>\"\",YılBaşındanBugüneÖzeti[[#This Row],[Nakliye karı/zararı]]<>\"\"),YılBaşındanBugüneÖzeti[[#This Row],[Satış karı/zararı]]+YılBaşındanBugüneÖzeti[[#This Row],[Nakliye karı/zararı]],\"\")","v":{"v":0,"d":"0.00 TL"}}]
[{"$nulls":7},"Mayıs",{"$f":"MayısSatışları[[#Totals],[Satış karı/zararı]]","v":{"v":0,"d":"0.00 TL"}},{"$f":"MayısSatışları[[#Totals],[Nakliye karı/zararı]]","v":{"v":0,"d":"0.00 TL"}},{"$f":"IF(AND(YılBaşındanBugüneÖzeti[[#This Row],[Satış karı/zararı]]<>\"\",YılBaşındanBugüneÖzeti[[#This Row],[Nakliye karı/zararı]]<>\"\"),YılBaşındanBugüneÖzeti[[#This Row],[Satış karı/zararı]]+YılBaşındanBugüneÖzeti[[#This Row],[Nakliye karı/zararı]],\"\")","v":{"v":0,"d":"0.00 TL"}}]
[{"$nulls":7},"Haziran",{"$f":"HaziranSatışları[[#Totals],[Satış karı/zararı]]","v":{"v":0,"d":"0.00 TL"}},{"$f":"HaziranSatışları[[#Totals],[Nakliye karı/zararı]]","v":{"v":0,"d":"0.00 TL"}},{"$f":"IF(AND(YılBaşındanBugüneÖzeti[[#This Row],[Satış karı/zararı]]<>\"\",YılBaşındanBugüneÖzeti[[#This Row],[Nakliye karı/zararı]]<>\"\"),YılBaşındanBugüneÖzeti[[#This Row],[Satış karı/zararı]]+YılBaşındanBugüneÖzeti[[#This Row],[Nakliye karı/zararı]],\"\")","v":{"v":0,"d":"0.00 TL"}}]
[{"$nulls":7},"Temmuz",{"$f":"TemmuzSatışları[[#Totals],[Satış karı/zararı]]","v":{"v":0,"d":"0.00 TL"}},{"$f":"TemmuzSatışları[[#Totals],[Nakliye karı/zararı]]","v":{"v":0,"d":"0.00 TL"}},{"$f":"IF(AND(YılBaşındanBugüneÖzeti[[#This Row],[Satış karı/zararı]]<>\"\",YılBaşındanBugüneÖzeti[[#This Row],[Nakliye karı/zararı]]<>\"\"),YılBaşındanBugüneÖzeti[[#This Row],[Satış karı/zararı]]+YılBaşındanBugüneÖzeti[[#This Row],[Nakliye karı/zararı]],\"\")","v":{"v":0,"d":"0.00 TL"}}]
[{"$nulls":7},"Ağustos",{"$f":"AğustosSatışları[[#Totals],[Satış karı/zararı]]","v":{"v":0,"d":"0.00 TL"}},{"$f":"AğustosSatışları[[#Totals],[Nakliye karı/zararı]]","v":{"v":0,"d":"0.00 TL"}},{"$f":"IF(AND(YılBaşındanBugüneÖzeti[[#This Row],[Satış karı/zararı]]<>\"\",YılBaşındanBugüneÖzeti[[#This Row],[Nakliye karı/zararı]]<>\"\"),YılBaşındanBugüneÖzeti[[#This Row],[Satış karı/zararı]]+YılBaşındanBugüneÖzeti[[#This Row],[Nakliye karı/zararı]],\"\")","v":{"v":0,"d":"0.00 TL"}}]
[{"$nulls":7},"Eylül",{"$f":"EylülSatışları[[#Totals],[Satış karı/zararı]]","v":{"v":0,"d":"0.00 TL"}},{"$f":"EylülSatışları[[#Totals],[Nakliye karı/zararı]]","v":{"v":0,"d":"0.00 TL"}},{"$f":"IF(AND(YılBaşındanBugüneÖzeti[[#This Row],[Satış karı/zararı]]<>\"\",YılBaşındanBugüneÖzeti[[#This Row],[Nakliye karı/zararı]]<>\"\"),YılBaşındanBugüneÖzeti[[#This Row],[Satış karı/zararı]]+YılBaşındanBugüneÖzeti[[#This Row],[Nakliye karı/zararı]],\"\")","v":{"v":0,"d":"0.00 TL"}}]
[{"$nulls":7},"Ekim",{"$f":"EkimSatışları[[#Totals],[Satış karı/zararı]]","v":{"v":0,"d":"0.00 TL"}},{"$f":"EkimSatışları[[#Totals],[Nakliye karı/zararı]]","v":{"v":0,"d":"0.00 TL"}},{"$f":"IF(AND(YılBaşındanBugüneÖzeti[[#This Row],[Satış karı/zararı]]<>\"\",YılBaşındanBugüneÖzeti[[#This Row],[Nakliye karı/zararı]]<>\"\"),YılBaşındanBugüneÖzeti[[#This Row],[Satış karı/zararı]]+YılBaşındanBugüneÖzeti[[#This Row],[Nakliye karı/zararı]],\"\")","v":{"v":0,"d":"0.00 TL"}}]
[{"$nulls":7},"Kasım",{"$f":"KasımSatışları[[#Totals],[Satış karı/zararı]]","v":{"v":0,"d":"0.00 TL"}},{"$f":"KasımSatışları[[#Totals],[Nakliye karı/zararı]]","v":{"v":0,"d":"0.00 TL"}},{"$f":"IF(AND(YılBaşındanBugüneÖzeti[[#This Row],[Satış karı/zararı]]<>\"\",YılBaşındanBugüneÖzeti[[#This Row],[Nakliye karı/zararı]]<>\"\"),YılBaşındanBugüneÖzeti[[#This Row],[Satış karı/zararı]]+YılBaşındanBugüneÖzeti[[#This Row],[Nakliye karı/zararı]],\"\")","v":{"v":0,"d":"0.00 TL"}}]
[{"$nulls":7},"Aralık",{"$f":"AralıkSatışları[[#Totals],[Satış karı/zararı]]","v":{"v":0,"d":"0.00 TL"}},{"$f":"AralıkSatışları[[#Totals],[Nakliye karı/zararı]]","v":{"v":0,"d":"0.00 TL"}},{"$f":"IF(AND(YılBaşındanBugüneÖzeti[[#This Row],[Satış karı/zararı]]<>\"\",YılBaşındanBugüneÖzeti[[#This Row],[Nakliye karı/zararı]]<>\"\"),YılBaşındanBugüneÖzeti[[#This Row],[Satış karı/zararı]]+YılBaşındanBugüneÖzeti[[#This Row],[Nakliye karı/zararı]],\"\")","v":{"v":0,"d":"0.00 TL"}}]
[{"$nulls":7},"Toplam",{"$f":"SUBTOTAL(109,YılBaşındanBugüneÖzeti[Satış karı/zararı])","v":{"v":291.8,"d":"291.80 TL"}},{"$f":"SUBTOTAL(109,YılBaşındanBugüneÖzeti[Nakliye karı/zararı])","v":{"v":21.8,"d":"21.80 TL"}},{"$f":"SUBTOTAL(109,YılBaşındanBugüneÖzeti[Toplam kar/zarar])","v":{"v":313.6,"d":"313.60 TL"}}]